fUST/lending_fUST_20240908
["ID","MTS","AMOUNT","RATE_DAILY","PERIOD"]
[337550119,1725805926915,-500.0,0.00056438,120]
[337550120,1725805926925,-500.0,0.00056438,120]
[337550121,1725805926934,-500.0,0.00056438,120]
[337550122,1725805926943,-395.06,0.00056438,120]
[337550123,1725805926953,-500.0,0.00056438,120]
[337550124,1725805926962,-500.0,0.00056438,120]
[337550125,1725805926972,-500.0,0.00056438,120]
[337550126,1725805926982,-1035.22,0.00056438,120]
[337550127,1725805926991,-500.0,0.00056438,120]
[337550128,1725805927001,-443.76354996,0.00056438,120]
[337550129,1725805927010,-504.87758488,0.00056438,120]
[337550130,1725805927020,-500.0,0.00056438,120]
[337550131,1725805927031,-500.0,0.00056438,120]
[337550132,1725805927040,-500.0,0.00056438,120]
[337550133,1725805927050,-500.0,0.00056438,120]
[337550134,1725805927060,-754.38,0.00056438,120]
[337550135,1725805927071,-500.0,0.00056438,120]
[337550136,1725805927080,-1120.52,0.00056438,120]
[337550137,1725805927090,-2095.23,0.00056438,120]
[337550138,1725805927099,-500.0,0.00056438,120]
[337550139,1725805927111,-778.94,0.00056438,120]
[337550140,1725805927121,-500.0,0.00056438,120]
[337550141,1725805927135,-215.21938835,0.00056438,120]
[337550142,1725805927146,-571.63,0.00056438,120]
[337550143,1725805927157,-1114.92,0.00056438,120]
[337550144,1725805927167,-675.76,0.00056438,120]
[337550145,1725805927178,-500.0,0.00056438,120]
[337550146,1725805927187,-783.87,0.00056438,120]
[337550147,1725805927197,-500.0,0.00056438,120]
[337550148,1725805927207,-722.92,0.00056438,120]
[337550149,1725805927377,-500.0,0.00056438,120]
[337550150,1725805927387,-500.0,0.00056438,120]
[337550151,1725805927397,-500.0,0.00056438,120]
[337550152,1725805927407,-524.84936973,0.00056438,30]
[337550153,1725805927416,-500.0,0.00056438,120]
[337550154,1725805927425,-500.0,0.00056438,120]
[337550155,1725805927435,-500.0,0.00056438,120]
[337550156,1725805927446,-500.0,0.00056438,120]
[337550157,1725805927456,-1071.72,0.00056438,120]
[337550158,1725805927466,-2383.56,0.00056438,120]
[337550159,1725805927476,-500.0,0.00056438,120]
[337550160,1725805927486,-387.91412966,0.00056438,120]
[337550161,1725805927496,-500.0,0.00056438,120]
[337550162,1725805927505,-500.0,0.00056438,120]
[337550163,1725805927515,-574.57,0.00056438,120]
[337550164,1725805927524,-1141.39,0.00056438,120]
[337550165,1725805927534,-1569.13,0.00056438,120]
[337550166,1725805927545,-500.0,0.00056438,120]
[337550167,1725805927556,-285.58,0.00056438,7]
[337550168,1725805927565,-1441.77,0.00056438,120]
[337550169,1725805927575,-500.0,0.00056438,120]
[337550170,1725805927584,-1350.66,0.00056438,120]
[337550171,1725805927594,-575.01,0.00056438,120]
[337550172,1725805927604,-500.0,0.00056438,120]
[337550173,1725805927618,-1422.35,0.00056438,120]
[337550174,1725805927628,-500.0,0.00056438,120]
[337550175,1725805927638,-500.0,0.00056438,120]
[337550176,1725805927649,-333.92902599,0.00056438,120]
[337550177,1725805927658,-500.0,0.00056438,120]
[337550178,1725805927668,-500.0,0.00056438,120]
[337550179,1725805927678,-500.0,0.00056438,120]
[337550180,1725805927688,-500.0,0.00056438,120]
[337550181,1725805927698,-906.85,0.00056438,120]
[337550182,1725805927708,-597.88,0.00056438,120]
[337550183,1725805927718,-2349.55,0.00056438,120]
[337550184,1725805927728,-500.0,0.00056438,120]
[337550185,1725805927739,-500.0,0.00056438,120]
[337550186,1725805927749,-500.0,0.00056438,120]
[337550187,1725805927759,-500.0,0.00056438,120]
[337550188,1725805927770,-968.65,0.00056438,120]
[337550189,1725805927780,-754.03,0.00056438,120]
[337550190,1725805927789,-1888.16,0.00056438,120]
[337550191,1725805927799,-500.0,0.00056438,120]
[337550192,1725805927809,-500.0,0.00056438,120]
[337550193,1725805927819,-547.56,0.00056438,120]
[337550194,1725805927829,-500.0,0.00056438,120]
[337550195,1725805927839,-500.0,0.00056438,120]
[337550196,1725805927849,-2284.18,0.00056438,120]
[337550197,1725805927860,-500.0,0.00056438,120]
[337550198,1725805927871,-500.0,0.00056438,120]
[337550199,1725805927881,-500.0,0.00056438,120]
[337550200,1725805927904,-500.0,0.00056438,120]
[337550201,1725805927914,-3590.46,0.00056438,120]
[337550202,1725805927924,-500.0,0.00056438,120]
[337550203,1725805927933,-500.0,0.00056438,120]
[337550204,1725805927945,-370.15345019,0.00056438,7]
[337550205,1725805927955,-1819.09,0.00056438,120]
[337550206,1725805927965,-500.0,0.00056438,120]
[337550207,1725805927975,-500.0,0.00056438,120]
[337550208,1725805927984,-500.0,0.00056438,120]
[337550209,1725805927994,-1728.98,0.00056438,120]
[337550210,1725805928004,-501.74703755,0.00056438,2]
[337550211,1725805928015,-823.39,0.00056438,120]
[337550212,1725805928026,-500.0,0.00056438,120]
[337550213,1725805928036,-500.0,0.00056438,120]
[337550214,1725805928045,-500.0,0.00056438,120]
[337550215,1725805928055,-554.96,0.00056438,120]
[337550216,1725805928064,-500.0,0.00056438,120]
[337550217,1725805928074,-3569.14,0.00056438,120]
[337550218,1725805928084,-1143.59,0.00056438,120]
[337550219,1725805928094,-1919.68,0.00056438,120]
[337550220,1725805928104,-500.0,0.00056438,120]
[337550221,1725805928114,-500.0,0.00056438,120]
[337550222,1725805928123,-500.0,0.00056438,120]
[337550223,1725805928133,-3136.53,0.00056438,120]
[337550224,1725805928142,-500.0,0.00056438,120]
[337550225,1725805928152,-535.66,0.00056438,120]
[337550226,1725805928163,-500.0,0.00056438,120]
[337550227,1725805928174,-500.0,0.00056438,120]
[337550228,1725805928185,-1239.09,0.00056438,120]
[337550229,1725805928196,-500.0,0.00056438,120]
[337550230,1725805928206,-500.0,0.00056438,120]
[337550231,1725805928216,-816.25,0.00056438,120]
[337550232,1725805928226,-500.0,0.00056438,120]
[337550233,1725805928235,-547.76256237,0.00056438,120]
[337550234,1725805928245,-500.0,0.00056438,120]
[337550235,1725805928255,-500.0,0.00056438,120]
[337550236,1725805928264,-735.13,0.00056438,7]
[337550237,1725805928274,-500.0,0.00056438,120]
[337550238,1725805928284,-544.41,0.00056438,120]
[337550239,1725805928293,-500.0,0.00056438,120]
[337550240,1725805928303,-702.53,0.00056438,120]
[337550241,1725805928312,-2422.66,0.00056438,120]
[337550242,1725805928322,-651.97,0.00056438,120]
[337550243,1725805928331,-912.86,0.00056438,120]
[337550244,1725805928341,-500.0,0.00056438,120]
[337550245,1725805928350,-500.0,0.00056438,120]
[337550246,1725805928360,-500.0,0.00056438,120]
[337550247,1725805928369,-500.0,0.00056438,120]
[337550248,1725805928379,-2604.32,0.00056438,30]
[337550249,1725805928389,-712.44,0.00056438,120]
[337550250,1725805928398,-500.0,0.00056438,120]
[337550251,1725805928407,-2383.05,0.00056438,120]
[337550252,1725805928418,-1268.01,0.00056438,120]
[337550253,1725805928428,-500.0,0.00056438,120]
[337550254,1725805928439,-500.0,0.00056438,120]
[337550255,1725805928449,-327.26168491,0.00056438,120]
[337550256,1725805928460,-500.0,0.00056438,120]
[337550257,1725805928470,-500.0,0.00056438,20]
[337550258,1725805928479,-500.0,0.00056438,120]
[337550259,1725805928489,-599.83,0.00056438,120]
[337550260,1725805928499,-500.0,0.00056438,120]
[337550261,1725805928509,-500.0,0.00056438,120]
[337550262,1725805928519,-1639.78,0.00056438,120]
[337550263,1725805928529,-706.48,0.00056438,120]
[337550264,1725805928538,-500.0,0.00056438,120]
[337550265,1725805928548,-500.0,0.00056438,120]
[337550266,1725805928559,-500.0,0.00056438,120]
[337550267,1725805928569,-508.2,0.00056438,120]
[337550268,1725805928579,-500.0,0.00056438,120]
[337550269,1725805928589,-500.0,0.00056438,120]
[337550270,1725805928599,-500.0,0.00056438,120]
[337550271,1725805928608,-549.45,0.00056438,120]
[337550272,1725805928624,-500.0,0.00056438,120]
[337550273,1725805928634,-500.0,0.00056438,120]
[337550274,1725805928645,-500.0,0.00056438,120]
[337550275,1725805928661,-1099.95,0.00056438,120]
[337550276,1725805928671,-500.0,0.00056438,120]
[337550277,1725805928682,-2965.66,0.00056438,120]
[337550278,1725805928693,-500.0,0.00056438,120]
[337550279,1725805928704,-500.0,0.00056438,120]
[337550280,1725805928714,-500.0,0.00056438,120]
[337550281,1725805928725,-1019.13,0.00056438,120]
[337550282,1725805928735,-500.58,0.00056438,120]
[337550283,1725805928746,-508.84331803,0.00056438,120]
[337550284,1725805928756,-500.0,0.00056438,120]
[337550285,1725805928766,-500.0,0.00056438,120]
[337550286,1725805928777,-500.0,0.00056438,120]
[337550287,1725805928788,-500.0,0.00056438,120]
[337550288,1725805928799,-500.0,0.00056438,120]
[337550289,1725805928810,-500.0,0.00056438,120]
[337550290,1725805928820,-536.46,0.00056438,120]
[337550291,1725805928830,-500.0,0.00056438,120]
[337550292,1725805928844,-956.94,0.00056438,120]
[337550293,1725805928873,-2614.93,0.00056438,120]
[337550294,1725805928890,-1258.91,0.00056438,30]
[337550295,1725805928909,-936.51,0.00056438,120]
[337550296,1725805928928,-750.82,0.00056438,120]
[337550297,1725805928948,-500.0,0.00056438,120]
[337550298,1725805928965,-500.0,0.00056438,120]
[337550299,1725805928986,-500.0,0.00056438,120]
[337550300,1725805929004,-500.0,0.00056438,120]
[337550301,1725805929019,-500.96,0.00056438,120]
[337550302,1725805929036,-500.0,0.00056438,120]
[337550303,1725805929056,-809.49,0.00056438,120]
[337550304,1725805929074,-1610.56,0.00056438,2]
[337550305,1725805929087,-500.0,0.00056438,120]
[337550306,1725805929103,-2330.31,0.00056438,120]
[337550307,1725805929125,-500.0,0.00056438,120]
[337550308,1725805929144,-919.1,0.00056438,120]
[337550309,1725805929159,-713.82,0.00056438,120]
[337550310,1725805929174,-1348.0,0.00056438,120]
[337550311,1725805929188,-1215.29,0.00056438,120]
[337550312,1725805929203,-500.0,0.00056438,120]
[337550313,1725805929218,-505.45274382,0.00056438,120]
[337550314,1725805929232,-500.0,0.00056438,120]
[337550315,1725805929246,-500.0,0.00056438,120]
[337550316,1725805929261,-500.0,0.00056438,30]
[337550317,1725805929276,-500.0,0.00056438,120]
[337550318,1725805929290,-500.0,0.00056438,120]
[337550319,1725805929305,-8647.46,0.00056438,120]
[337550320,1725805929319,-500.0,0.00056438,120]
[337550321,1725805929333,-1268.96,0.00056438,120]
[337550322,1725805929347,-905.01,0.00056438,120]
[337550323,1725805929369,-500.0,0.00056438,120]
[337550324,1725805929383,-500.0,0.00056438,120]
[337550325,1725805929397,-1095.72,0.00056438,120]
[337550326,1725805929410,-500.0,0.00056438,120]
[337550327,1725805929424,-500.0,0.00056438,120]
[337550328,1725805929438,-500.0,0.00056438,120]
[337550329,1725805929452,-500.0,0.00056438,120]
[337550330,1725805929466,-2723.96,0.00056438,120]
[337550331,1725805929479,-3738.38,0.00056438,120]
[337550332,1725805929493,-1760.49,0.00056438,120]
[337550333,1725805929506,-500.0,0.00056438,120]
[337550334,1725805929519,-500.0,0.00056438,120]
[337550335,1725805929534,-500.0,0.00056438,120]
[337550336,1725805929548,-1652.87,0.00056438,120]
[337550337,1725805929562,-1533.73,0.00056438,7]
[337550338,1725805929575,-500.0,0.00056438,120]
[337550339,1725805929589,-935.82,0.00056438,120]
[337550340,1725805929602,-500.0,0.00056438,2]
[337550341,1725805929623,-990.57,0.00056438,120]
[337550342,1725805929637,-1634.99,0.00056438,120]
[337550343,1725805929652,-500.0,0.00056438,120]
[337550344,1725805929665,-500.0,0.00056438,120]
[337550345,1725805929678,-500.0,0.00056438,120]
[337550346,1725805929692,-561.96,0.00056438,120]
[337550347,1725805929706,-502.80384622,0.00056438,120]
[337550348,1725805929719,-999.0,0.00056438,120]
[337550349,1725805929732,-798.12,0.00056438,120]
[337550350,1725805929746,-500.0,0.00056438,120]
[337550351,1725805929759,-756.74,0.00056438,120]
[337550352,1725805929773,-500.0,0.00056438,120]
[337550353,1725805929787,-500.0,0.00056438,120]
[337550354,1725805929801,-500.0,0.00056438,120]
[337550355,1725805929815,-3183.67,0.00056438,120]
[337550356,1725805929828,-639.86,0.00056438,120]
[337550357,1725805929840,-500.0,0.00056438,120]
[337550358,1725805929854,-1579.24,0.00056438,120]
[337550359,1725805929871,-500.0,0.00056438,120]
[337550360,1725805929885,-1002.7,0.00056438,120]
[337550361,1725805929900,-3855.05,0.00056438,120]
[337550362,1725805929913,-500.0,0.00056438,120]
[337550363,1725805929926,-1054.78,0.00056438,120]
[337550364,1725805929940,-4259.05,0.00056438,120]
[337550365,1725805929953,-500.0,0.00056438,120]
[337550366,1725805929967,-500.0,0.00056438,120]
[337550367,1725805929980,-500.0,0.00056438,120]
[337550368,1725805929992,-500.0,0.00056438,120]
[337550369,1725805930006,-2083.33,0.00056438,120]
[337550370,1725805930019,-1317.78,0.00056438,120]
[337550371,1725805930033,-500.0,0.00056438,120]
[337550372,1725805930046,-1267.76,0.00056438,120]
[337550373,1725805930060,-554.12821126,0.00056438,120]
[337550374,1725805930073,-500.0,0.00056438,120]
[337550375,1725805930086,-3178.06,0.00056438,120]
[337550376,1725805930099,-500.0,0.00056438,120]
[337550377,1725805930114,-5184.01,0.00056438,120]
[337550378,1725805930127,-588.78,0.00056438,120]
[337550379,1725805930142,-500.0,0.00056438,120]
[337550380,1725805930155,-535.99,0.00056438,120]
[337550381,1725805930167,-3023.99,0.00056438,120]
[337550382,1725805930180,-502.71140223,0.00056438,120]
[337550383,1725805930193,-500.0,0.00056438,120]
[337550384,1725805930205,-571.74,0.00056438,120]
[337550385,1725805930218,-622.8,0.00056438,120]
[337550386,1725805930232,-1447.48,0.00056438,120]
[337550387,1725805930247,-2095.57,0.00056438,120]
[337550388,1725805930260,-500.0,0.00056438,120]
[337550389,1725805930274,-500.0,0.00056438,120]
[337550390,1725805930287,-500.0,0.00056438,120]
[337550391,1725805930300,-4027.69,0.00056438,120]
[337550392,1725805930313,-2650.07,0.00056438,120]
[337550393,1725805930326,-2388.47,0.00056438,120]
[337550394,1725805930340,-674.33,0.00056438,120]
[337550395,1725805930353,-3583.25,0.00056438,120]
[337550396,1725805930367,-636.12,0.00056438,120]
[337550397,1725805930379,-2356.95,0.00056438,120]
[337550398,1725805930393,-1869.76,0.00056438,120]
[337550399,1725805930406,-3073.31,0.00056438,120]
[337550400,1725805930422,-506.21940367,0.00056438,120]
[337550401,1725805930437,-500.0,0.00056438,120]
[337550402,1725805930450,-500.0,0.00056438,120]
[337550403,1725805930463,-500.0,0.00056438,120]
[337550404,1725805930475,-462.73740727,0.00056438,120]
[337550405,1725805930488,-3853.3,0.00056438,120]
[337550406,1725805930501,-7074.82,0.00056438,120]
[337550407,1725805930515,-644.27,0.00056438,120]
[337550408,1725805930528,-102728.31,0.00056438,120]
[337550409,1725805930542,-23755.79,0.00056438,120]
[337550410,1725805930554,-500.0,0.00056438,120]
[337550411,1725805930568,-606.98,0.00056438,120]
[337550412,1725805930580,-500.0,0.00056438,120]
[337550413,1725805930594,-2449.96,0.00056438,120]
[337550414,1725805930607,-500.0,0.00056438,120]
[337550415,1725805930622,-500.0,0.00056438,60]
[337550416,1725805930635,-1564.55,0.00056438,120]
[337550417,1725805930647,-3064.33,0.00056438,120]
[337550418,1725805930660,-500.58,0.00056438,120]
[337550419,1725805930673,-1746.51,0.00056438,120]
[337550420,1725805930686,-500.0,0.00056438,120]
[337550421,1725805930699,-3749.99,0.00056438,21]
[337550422,1725805930713,-9742.51,0.00056438,120]
[337550423,1725805930728,-500.0,0.00056438,120]
[337550424,1725805930742,-13752.81,0.00056438,120]
[337550425,1725805930755,-963.77,0.00056438,120]
[337550426,1725805930768,-500.0,0.00056438,120]
[337550427,1725805930781,-703.33,0.00056438,120]
[337550428,1725805930795,-2137.02,0.00056438,120]
[337550429,1725805930808,-1973.22,0.00056438,120]
[337550430,1725805930823,-500.0,0.00056438,120]
[337550431,1725805930837,-14745.27,0.00056438,120]
[337550432,1725805931096,-500.0,0.00056438,120]
[337550433,1725805931114,-500.0,0.00056438,120]
[337550434,1725805931124,-5506.22,0.00056438,120]
[337550435,1725805931134,-837.11,0.00056438,120]
[337550436,1725805931148,-500.0,0.00056438,120]
[337550437,1725805931158,-2101.71,0.00056438,120]
[337550438,1725805931167,-3357.86,0.00056438,120]
[337550439,1725805931176,-1071.54,0.00056438,120]
[337550440,1725805931186,-500.0,0.00056438,120]
[337550441,1725805931195,-2112.01,0.00056438,120]
[337550442,1725805931204,-500.0,0.00056438,120]
[337550443,1725805931214,-500.0,0.00056438,120]
[337550444,1725805931224,-574.17,0.00056438,120]
[337550445,1725805931233,-8902.45,0.00056438,120]
[337550446,1725805931243,-2582.17,0.00056438,120]
[337550447,1725805931252,-500.0,0.00056438,120]
[337550448,1725805931261,-23937.12,0.00056438,120]
[337550449,1725805931270,-3412.04,0.00056438,120]
[337550450,1725805931279,-2460.34,0.00056438,120]
[337550451,1725805931288,-500.0,0.00056438,120]
[337550452,1725805931297,-1782.06,0.00056438,120]
[337550453,1725805931307,-976.47,0.00056438,120]
[337550454,1725805931316,-1276.39,0.00056438,120]
[337550455,1725805931327,-500.0,0.00056438,120]
[337550456,1725805931337,-500.0,0.00056438,120]
[337550457,1725805931346,-500.0,0.00056438,120]
[337550458,1725805931356,-1603.97,0.00056438,120]
[337550459,1725805931366,-500.0,0.00056438,120]
[337550460,1725805931376,-500.0,0.00056438,120]
[337550461,1725805931385,-489.03427523,0.00056438,120]
[337550462,1725805931395,-500.0,0.00056438,120]
[337550463,1725805931404,-5806.88,0.00056438,120]
[337550464,1725805931413,-500.0,0.00056438,120]
[337550465,1725805931423,-500.0,0.00056438,120]
[337550466,1725805931432,-1279.78,0.00056438,120]
[337550467,1725805931441,-534.03,0.00056438,120]
[337550468,1725805931451,-502.87986715,0.00056438,120]
[337550469,1725805931461,-1024.51,0.00056438,120]
[337550470,1725805931470,-500.0,0.00056438,120]
[337550471,1725805931479,-1275.45,0.00056438,120]
[337550472,1725805931488,-500.0,0.00056438,120]
[337550473,1725805931498,-2254.71,0.00056438,120]
[337550474,1725805931507,-500.0,0.00056438,120]
[337550475,1725805931517,-3406.69,0.00056438,120]
[337550476,1725805931526,-1262.14,0.00056438,120]
[337550477,1725805931535,-528.70356466,0.00056438,120]
[337550478,1725805931545,-500.0,0.00056438,120]
[337550479,1725805931554,-582.4,0.00056438,120]
[337550480,1725805931566,-500.0,0.00056438,120]
[337550481,1725805931575,-500.0,0.00056438,120]
[337550482,1725805931585,-500.0,0.00056438,30]
[337550483,1725805931593,-500.0,0.00056438,120]
[337550484,1725805931603,-14687.42,0.00056438,120]
[337550485,1725805931612,-500.0,0.00056438,120]
[337550486,1725805931622,-500.0,0.00056438,120]
[337550487,1725805931632,-500.0,0.00056438,120]
[337550488,1725805931641,-579.16269478,0.00056438,120]
[337550489,1725805931651,-500.0,0.00056438,120]
[337550490,1725805931661,-500.0,0.00056438,120]
[337550491,1725805931671,-5272.46,0.00056438,120]
[337550492,1725805931680,-506.36222708,0.00056438,120]
[337550493,1725805931690,-500.0,0.00056438,120]
[337550494,1725805931700,-504.73,0.00056438,120]
[337550495,1725805931709,-1106.81,0.00056438,120]
[337550496,1725805931719,-2811.07,0.00056438,120]
[337550497,1725805931729,-2345.52,0.00056438,120]
[337550498,1725805931739,-2986.05,0.00056438,120]
[337550499,1725805931749,-988.28,0.00056438,120]
[337550500,1725805931758,-5000.0,0.00056438,120]
[337550501,1725805931768,-500.0,0.00056438,120]
[337550502,1725805931777,-500.0,0.00056438,120]
[337550503,1725805931787,-774.97,0.00056438,120]
[337550504,1725805931796,-2940.53,0.00056438,120]
[337550505,1725805931806,-2486.72,0.00056438,120]
[337550506,1725805931815,-500.0,0.00056438,120]
[337550507,1725805931824,-3307.1,0.00056438,120]
[337550508,1725805931834,-548.39,0.00056438,120]
[337550509,1725805931844,-4017.77,0.00056438,120]
[337550510,1725805931853,-2054.2,0.00056438,120]
[337550511,1725805931863,-3267.98,0.00056438,120]
[337550512,1725805931873,-1134.8,0.00056438,120]
[337550513,1725805931883,-4690.76,0.00056438,120]
[337550514,1725805931893,-666.78,0.00056438,120]
[337550515,1725805931902,-500.0,0.00056438,120]
[337550516,1725805931912,-950.66,0.00056438,120]
[337550517,1725805931922,-500.0,0.00056438,120]
[337550518,1725805931932,-876.05,0.00056438,120]
[337550519,1725805931941,-5751.99,0.00056438,120]
[337550520,1725805931951,-500.0,0.00056438,120]
[337550521,1725805931959,-500.0,0.00056438,120]
[337550522,1725805931969,-1300.0,0.00056469,120]
[337550523,1725805931978,-153.0,0.00056712,2]
[337550524,1725805931988,-529.32,0.00056849,93]
[337550525,1725805931998,-800.0,0.00056935,120]
[337550526,1725805932007,-150.0,0.00057,120]
[337550527,1725805932016,-169.2576421,0.00057088,120]
[337550528,1725805932025,-151.0,0.00057123,120]
[337550529,1725805932034,-696.86626155,0.00057434,2]
[337550530,1725805932045,-500.0,0.00057534,120]
[337550531,1725805932055,-500.0,0.00057534,120]
[337550532,1725805932066,-500.0,0.00057534,120]
[337550533,1725805932075,-500.0,0.00057534,120]
[337550534,1725805932085,-500.0,0.00057534,120]
[337550535,1725805932094,-500.0,0.00057534,120]
[337550536,1725805932103,-500.0,0.00057534,120]
[337550537,1725805932112,-500.0,0.00057534,120]
[337550538,1725805932122,-500.0,0.00057534,120]
[337550539,1725805932132,-500.0,0.00057534,120]
[337550540,1725805932141,-500.0,0.00057534,120]
[337550541,1725805932150,-500.0,0.00057534,120]
[337550542,1725805932159,-673.59,0.00057534,120]
[337550543,1725805932168,-911.08,0.00057534,120]
[337550544,1725805932177,-500.0,0.00057534,120]
[337550545,1725805932186,-500.0,0.00057534,120]
[337550546,1725805932196,-500.0,0.00057534,120]
[337550547,1725805932205,-629.21,0.00057534,120]
[337550548,1725805932215,-647.52,0.00057534,120]
[337550549,1725805932224,-883.64,0.00057534,120]
[337550550,1725805932234,-500.0,0.00057534,120]
[337550551,1725805932243,-500.0,0.00057534,120]
[337550552,1725805932253,-500.0,0.00057534,120]
[337550553,1725805932262,-500.0,0.00057534,120]
[337550554,1725805932271,-695.11,0.00057534,120]
[337550555,1725805932282,-539.71,0.00057534,120]
[337550556,1725805932291,-1337.0,0.00057534,120]
[337550557,1725805932300,-518.38957997,0.00057534,120]
[337550558,1725805932310,-1005.43,0.00057534,120]
[337550559,1725805932320,-500.0,0.00057534,120]
[337550560,1725805932330,-519.26,0.00057534,120]
[337550561,1725805932338,-500.0,0.00057534,120]
[337550562,1725805932348,-500.0,0.00057534,120]
[337550563,1725805932359,-500.0,0.00057534,120]
[337550564,1725805932370,-500.0,0.00057534,120]
[337550565,1725805932378,-500.0,0.00057534,120]
[337550566,1725805932387,-777.71,0.00057534,120]
[337550567,1725805932396,-536.44,0.00057534,120]
[337550568,1725805932406,-500.0,0.00057534,120]
[337550569,1725805932415,-424.02717696,0.00057534,120]
[337550570,1725805932424,-500.0,0.00057534,120]
[337550571,1725805932434,-395.06,0.00057534,120]
[337550572,1725805932443,-500.0,0.00057534,120]
[337550573,1725805932452,-500.0,0.00057534,120]
[337550574,1725805932461,-500.0,0.00057534,120]
[337550575,1725805932470,-1035.22,0.00057534,120]
[337550576,1725805932479,-500.0,0.00057534,120]
[337550577,1725805932489,-500.0,0.00057534,120]
[337550578,1725805932498,-500.0,0.00057534,120]
[337550579,1725805932509,-500.0,0.00057534,120]
[337550580,1725805932518,-500.0,0.00057534,120]
[337550581,1725805932528,-754.38,0.00057534,120]
[337550582,1725805932541,-500.0,0.00057534,120]
[337550583,1725805932550,-1120.52,0.00057534,120]
[337550584,1725805932559,-2095.23,0.00057534,120]
[337550585,1725805932569,-500.0,0.00057534,120]
[337550586,1725805932578,-778.94,0.00057534,120]
[337550587,1725805932587,-500.0,0.00057534,120]
[337550588,1725805932596,-571.63,0.00057534,120]
[337550589,1725805932606,-1114.92,0.00057534,120]
[337550590,1725805932616,-675.76,0.00057534,120]
[337550591,1725805932625,-504.19293368,0.00057534,120]
[337550592,1725805932635,-783.87,0.00057534,120]
[337550593,1725805932643,-500.0,0.00057534,120]
[337550594,1725805932653,-722.92,0.00057534,120]
[337550595,1725805932662,-500.0,0.00057534,120]
[337550596,1725805932672,-500.0,0.00057534,120]
[337550597,1725805932681,-500.0,0.00057534,120]
[337550598,1725805932690,-500.0,0.00057534,120]
[337550599,1725805932701,-442.98740398,0.00057534,120]
[337550600,1725805932710,-500.0,0.00057534,120]
[337550601,1725805932719,-500.0,0.00057534,120]
[337550602,1725805932728,-1071.72,0.00057534,120]
[337550603,1725805932738,-2383.56,0.00057534,120]
[337550604,1725805932748,-495.60017579,0.00057534,120]
[337550605,1725805932757,-541.18305618,0.00057534,120]
[337550606,1725805932766,-500.0,0.00057534,120]
[337550607,1725805932775,-574.57,0.00057534,120]
[337550608,1725805932785,-1141.39,0.00057534,120]
[337550609,1725805932794,-1569.13,0.00057534,120]
[337550610,1725805932803,-500.0,0.00057534,120]
[337550611,1725805932812,-285.58,0.00057534,7]
[337550612,1725805932822,-1441.77,0.00057534,120]
[337550613,1725805932831,-500.0,0.00057534,120]
[337550614,1725805932840,-1350.66,0.00057534,120]
[337550615,1725805932849,-575.01,0.00057534,120]
[337550616,1725805932859,-500.0,0.00057534,120]
[337550617,1725805932870,-1422.35,0.00057534,120]
[337550618,1725805932879,-500.0,0.00057534,120]